Cogmind - Beta 17.1 @@@ ROGUE MODE // 2026.09.15 @ 00:54:07 Player: 7H-NLC Result: Self-destructed Performance ------------- Evolutions (0) 0 Regions Visited (4) 800 Robots Destroyed (22) 110 Value Destroyed (410) 410 Prototype IDs (20) 400 Alien Tech Used (0) 0 Bonus (300) 300 TOTAL SCORE: 2020 Bonus ------- Registered with UFD 300 Cogmind --------- Core Integrity 44/250 Matter 83/300 Energy 170/170 System Corruption 0% Temperature Cool (0) Movement Flying (114) Ox1 Location -9/Scraptown Parts ------- > --- POWER (1) -------- Makeshift Power Source > --- PROPULSION (2) --- Cesium-ion Thruster Xenon Bombardment Thruster > --- UTILITY (2) ------ Makeshift Light Armor Plating > --- WEAPON (2) ------- Bolt Gun High-powered Shotgun > --- INVENTORY (5) ---- Light Treads VTOL Module Deep Structural Scanner Spectral Analyzer Mapping Drone Bay (3/3) Peak State ------------ > --- POWER ------------ Makeshift Power Source > --- PROPULSION ------- Cesium-ion Thruster Xenon Bombardment Thruster > --- UTILITY ---------- Advanced Heat Sink Advanced Weight Redist. System > --- WEAPON ----------- Bolt Gun Heavy Assault Rifle > --- INVENTORY -------- Deep Structural Scanner Spectral Analyzer Mapping Drone Bay Mini Grenade Launcher [Rating: 24] Favorites ----------- Power Makeshift Power Source Engine Makeshift Power Source Propulsion Light Treads Treads Light Treads Leg Aluminum Leg Wheel Wheel Flight Unit Xenon Bombardment Thruster Utility Medium Storage Unit Device Seismic Detector Storage Medium Storage Unit Protection Core Shielding Weapon Subdweller Beam Cannon Energy Gun Small Laser Energy Cannon Subdweller Beam Cannon Ballistic Gun Bolt Gun Launcher Grenade Launcher Special Weapon Mining Laser Build | -11 -10 -10 -9 -9 ------- Run | Yrd Mat Sub Rec Scr Slots Evolved . | . . . . . Power . | . . . . . Propulsion . | . . . . . Utility . | . . . . . Weapon . | . . . . . Parts Attached 36 | 7 1 14 . 14 Power 3 | 1 . 1 . 1 Engine 3 | 1 . 1 . 1 Core . | . . . . . Reactor . | . . . . . Propulsion 13 | 2 . 6 . 5 Treads 3 | . . 2 . 1 Leg 1 | . . . . 1 Wheel 6 | 2 . 4 . . Hover . | . . . . . Flight 3 | . . . . 3 Utility 9 | 2 1 2 . 4 Device 4 | 1 . 1 . 2 Storage 2 | 1 1 . . . Processor . | . . . . . Hackware . | . . . . . Protection 3 | . . 1 . 2 Artifact . | . . . . . Weapon 11 | 2 . 5 . 4 Energy Gun 3 | 2 . 1 . . Energy Cannon 2 | . . 2 . . Ballistic Gun 3 | . . . . 3 Ballistic Cannon . | . . . . . Launcher 2 | . . 1 . 1 Special Weapon 1 | . . 1 . . Impact Weapon . | . . . . . Slashing Weapon . | . . . . . Piercing Weapon . | . . . . . Special Melee Weapon . | . . . . . Unidentified Prototypes . | . . . . . Parts Lost 6 | . . 6 . . Power . | . . . . . Propulsion 2 | . . 2 . . Utility . | . . . . . Weapon 4 | . . 4 . . Highest Loss Streak 2 | . . 2 . . To Critical Strikes . | . . . . . Average Backups 7 | 1 6 9 8 5 Power 1 | . . 1 1 . Propulsion 1 | 1 2 1 1 1 Utility 3 | . 2 3 5 3 Weapon . | . 1 1 . . Tool/Special . | . . . . . Unused Backups 9 | . . 2 . 7 Power 3 | . . 2 . 1 Propulsion . | . . . . . Utility 5 | . . . . 5 Weapon . | . . . . . Tool/Special 1 | . . . . 1 Average Slot Usage (%) 88 | . 100 93 100 81 Engine 13 | . 14 14 14 12 Treads 12 | . . 16 16 9 Wheel 7 | . 28 11 11 . Flight 6 | . . . . 14 Device 8 | . 14 12 . 4 Storage 9 | . 14 14 14 4 Protection 5 | . . 1 14 10 Energy Gun 6 | . 28 10 . . Energy Cannon 6 | . . 8 14 4 Ballistic Gun 6 | . . . . 14 Launcher 1 | . . 3 . . Special Weapon 2 | . . . 14 4 Peak Build Rating 24 | 7 7 15 15 24 Average Rating 13 | 5 7 11 14 15 On Entrance 8 | . 7 7 15 14 Avg Prop Armor Cover (%) 11 | . . 12 13 10 Naked Turns 258 | . . . . 258 Heaviest Build 26 | 14 19 26 24 24 Greatest Support 40 | 20 20 40 40 40 Greatest Overweight (x) 1 | . . 1 1 1 Average Overweight (x) . | . . . . . Largest Inventory Capacity 10 | 8 10 10 10 10 Average Capacity 8 | 7 9 10 10 6 Most Carried 10 | 3 8 10 9 9 Average Carried 7 | 1 6 9 9 5 Final Capacity 10 | 8 10 10 10 5 Final Carried 9 | 3 8 9 9 5 Class Distribution -------------------- 98% | Mutant Dominant Class ---------------- Mutant | -10/Materials Mutant | -10/Subcaves Mutant | -9/Recycling Mutant | -9/Scraptown Resources | -11 -10 -10 -9 -9 ----------- Run | Yrd Mat Sub Rec Scr Matter Collected 744 | 175 117 334 . 118 Remotely . | . . . . . Salvage Created 454 | 18 155 281 . . Parts 48 | 4 10 34 . . Haulers Intercepted 1 | . 1 . . . Recyclers Shooed . | . . . . . Parts Field Recycled . | . . . . . Retrieved Matter . | . . . . . Parts Self-Destructed 8 | . . 8 . . Prevented . | . . . . . Parts Restored . | . . . . . Kills | -11 -10 -10 -9 -9 ------- Run | Yrd Mat Sub Rec Scr Combat Hostiles Destroyed 19 | . 6 13 . . Guns 9 | . 6 3 . . Cannons 2 | . . 2 . . AOE 8 | . . 8 . . Classes Destroyed 6 | 1 3 2 . . Worker 1 | . 1 . . . Tunneler 1 | 1 . . . . Hauler 1 | . 1 . . . Swarmer 12 | . 6 6 . . Artisan 1 | . . 1 . . Subdweller 7 | . . 7 . . Best Kill Streak 4 | 1 4 3 . . Combat Bots Only 3 | . 3 3 . . Max Kills in Single Turn 2 | 1 2 2 . . Gunslinging 1 | . 1 . . . Exploded 2 | . . 2 . . Melee . | . . . . . Uniques/NPCs Destroyed . | . . . . . Combat | -11 -10 -10 -9 -9 -------- Run | Yrd Mat Sub Rec Scr Hostile Shots Fired 85 | . 19 66 . . Missed 30 | . 5 25 . . Hits 55 | . 14 41 . . Projectile 55 | . 14 41 . . Critical Strikes 1 | . . 1 . . Damage Taken 876 | . 111 765 . . Core 206 | . 39 167 . . Absorbed by Shields . | . . . . . Redirected to Shielding 17 | . . 17 . . Core Remaining (%) 100 | 100 . . . . Volleys Fired 100 | 3 17 77 3 . Largest 2 | 2 2 2 2 . Hottest 180 | 90 90 110 180 . Shots Fired 131 | 6 28 91 6 . Gun 74 | 6 28 40 . . Cannon 42 | . . 39 3 . Launcher 12 | . . 12 . . Special 3 | . . . 3 . Kinetic . | . . . . . Thermal 119 | 6 28 79 6 . Explosive 12 | . . 12 . . Electromagnetic . | . . . . . Robot Hit Streak 16 | 1 5 16 . . Robot Miss Streak 3 | 2 3 2 . . Penetration Max . | . . . . . Secondary Targets 1 | . 1 . . . Max Gunslinging Chain 1 | . 1 . . . Shots Hit Robots 63 | 2 18 43 . . Core Hits 33 | 2 8 23 . . Critical Kills . | . . . . . Critical Parts Destroyed . | . . . . . Critical Strikes . | . . . . . Melee Attacks . | . . . . . Impact . | . . . . . Slashing . | . . . . . Piercing . | . . . . . Sneak Attacks . | . . . . . Combat Hostiles . | . . . . . Follow-up Attacks . | . . . . . Damage Inflicted 1266 | 22 243 1001 . . Guns 649 | 22 243 384 . . Cannons 108 | . . 108 . . Explosions 509 | . . 509 . . Melee . | . . . . . Ramming . | . . . . . Kinetic . | . . . . . Thermal 757 | 22 243 492 . . Explosive 509 | . . 509 . . Electromagnetic . | . . . . . Impact . | . . . . . Slashing . | . . . . . Piercing . | . . . . . Highest Corruption . | . . . . . Average Corruption . | . . . . . Corruption Purged . | . . . . . Corruption Blocked . | . . . . . Overload Shots . | . . . . . Overflow Damage 17 | . . 17 . . Projectiles 5 | . . 5 . . Explosions 12 | . . 12 . . Melee . | . . . . . Knockbacks . | . . . . . Impact . | . . . . . Kinetic . | . . . . . Secondary . | . . . . . Self-Inflicted Damage 82 | . . 82 . . Shots 3 | . . 3 . . Rammed . | . . . . . Targets Rammed . | . . . . . Kicked . | . . . . . Crushed . | . . . . . Highest Temperature 210 | 90 180 60 210 . Average Temperature 45 | 46 59 16 90 . Received Heat Transfer 123 | . . 123 . . Siege Activations . | . . . . . Martial Activations . | . . . . . Shielding Activations . | . . . . . Robots Disrupted . | . . . . . Combat Hostiles . | . . . . . Robots Corrupted . | . . . . . Combat Hostiles . | . . . . . Parts Fried . | . . . . . Impact Corruptions . | . . . . . Robots Melted 1 | . 1 . . . Combat Hostiles . | . . . . . Parts Melted 2 | . 2 . . . Heat Transferred 1775 | 50 656 1069 . . Parts Sabotaged . | . . . . . Parts Stolen . | . . . . . Parts Stripped . | . . . . . Power Chain Reactions . | . . . . . Alert | -11 -10 -10 -9 -9 ------- Run | Yrd Mat Sub Rec Scr Maximum Alert Level . | . . . . . Low Security (%) 100 | 100 100 . 100 . Level 1 . | . . . . . Level 2 . | . . . . . Level 3 . | . . . . . Level 4 . | . . . . . Level 5 . | . . . . . High Security . | . . . . . Max Security . | . . . . . Peak Influence 107 | 5 107 . 33 . Initial 33 | . . . 33 . Average 23 | 1 42 . 7 . Influence Increases 433 | 5 202 220 6 . Destroy 0b10 Robot/C 240 | . 120 120 . . Destroy 0b10 Robot/NC 15 | 5 10 . . . Destroy Leader 32 | . 22 10 . . Successful Hack 5 | . 5 . . . Destroy Structure 6 | . . . 6 . Lose Combat Pursuer 135 | . 45 90 . . Influence Decreases 433 | 5 115 238 75 . Entered New Map 79 | . . 43 36 . Time Decay 344 | 5 115 185 39 . Lost Part 10 | . . 10 . . Squads Dispatched 2 | . 2 . . . Investigation 1 | . 1 . . . Extermination . | . . . . . Reinforcement 1 | . 1 . . . Assault . | . . . . . Garrison . | . . . . . Intercept . | . . . . . Searches Triggered . | . . . . . Construction Impeded . | . . . . . Haulers Reinforced . | . . . . . Active Scanning Responses . | . . . . . Cargo Convoy Interrupts . | . . . . . Stealth | -11 -10 -10 -9 -9 --------- Run | Yrd Mat Sub Rec Scr Distress Signals . | . . . . . Communications Jammed . | . . . . . Distress Signals . | . . . . . Times Spotted 31 | . 12 19 . . Peak Tracking Total 6 | . 6 3 . . Tactical Retreats 4 | . 1 3 . . Traps | -11 -10 -10 -9 -9 ------- Run | Yrd Mat Sub Rec Scr Traps Triggered 2 | . 1 1 . . Indirectly . | . . . . . Trap Hack Attempts . | . . . . . Triggered . | . . . . . Disarmed . | . . . . . Reprogrammed . | . . . . . Reused . | . . . . . Traps Extracted . | . . . . . Installed . | . . . . . Triggered . | . . . . . Machines | -11 -10 -10 -9 -9 ---------- Run | Yrd Mat Sub Rec Scr Machines Disabled 2 | . . 2 . . Max in Single Turn 1 | . . 1 . . Machines Repaired . | . . . . . Machines Dismantled . | . . . . . Machines Sabotaged . | . . . . . Overloaded Fab Kills . | . . . . . Hacking | -11 -10 -10 -9 -9 --------- Run | Yrd Mat Sub Rec Scr Machines Accessed 7 | . 2 3 . 2 Terminals 2 | . 2 . . . Fabricators . | . . . . . Repair Stations . | . . . . . Recycling Units . | . . . . . Scanalyzers . | . . . . . Garrison Access . | . . . . . Total Hacks 34 | . 4 7 . 23 Successful 31 | . 1 7 . 23 Failed 3 | . 3 . . . Catastrophic 1 | . 1 . . . Database Lockouts . | . . . . . Manual . | . . . . . Terminals 4 | . 4 . . . Fabricators . | . . . . . Repair Stations . | . . . . . Recycling Units . | . . . . . Scanalyzers . | . . . . . Garrison Access . | . . . . . Terminal Hacks 31 | . 1 7 . 23 Record 23 | . . 5 . 18 Robot Analysis 5 | . . . . 5 Open Door 1 | . . 1 . . Hauler Manifests 1 | . 1 . . . Proto ID Catalog 1 | . . 1 . . Fabricator Hacks . | . . . . . Repair Station Hacks . | . . . . . Recycling Unit Hacks . | . . . . . Scanalyzer . | . . . . . Garrison Access Hacks . | . . . . . Unauthorized Hacks . | . . . . . Terminals . | . . . . . Fabricators . | . . . . . Repair Stations . | . . . . . Recycling Units . | . . . . . Scanalyzers . | . . . . . Garrison Access . | . . . . . Data Cores Recovered . | . . . . . Used . | . . . . . Hacking Detections 2 | . 2 . . . Full Trace Events . | . . . . . Feedback Events . | . . . . . Feedback Blocked . | . . . . . Robot Schematics Acquired . | . . . . . Robots Built . | . . . . . Authchips . | . . . . . Time . | . . . . . Total Robot Build Rating . | . . . . . Part Schematics Acquired . | . . . . . Parts Built . | . . . . . Authchips . | . . . . . Time . | . . . . . Total Part Build Rating . | . . . . . Part Studies Acquired . | . . . . . Parts Repaired . | . . . . . Time . | . . . . . Parts Recycled . | . . . . . Recycled Matter . | . . . . . Retrieved Matter . | . . . . . Retrieved Components . | . . . . . Parts Scanalyzed . | . . . . . Part Schematics Acquired . | . . . . . Parts Damaged . | . . . . . Bothacking | -11 -10 -10 -9 -9 ------------ Run | Yrd Mat Sub Rec Scr Used RIF Installer . | . . . . . Robots Hacked . | . . . . . Non-combat . | . . . . . Combat . | . . . . . Robot Hacks Applied . | . . . . . Relay Couplers Released . | . . . . . Fabnet Peak Effective % . | . . . . . Robots Rewired . | . . . . . Allies Hacked . | . . . . . Hacks Repelled . | . . . . . Allies | -11 -10 -10 -9 -9 -------- Run | Yrd Mat Sub Rec Scr Total Allies . | . . . . . Largest Group . | . . . . . Highest-Rated Group . | . . . . . Highest-Rated Ally . | . . . . . Total Orders . | . . . . . Ally Attacks . | . . . . . Total Damage . | . . . . . Kills . | . . . . . Allies Corrupted . | . . . . . Allies Melted . | . . . . . Intel | -11 -10 -10 -9 -9 ------- Run | Yrd Mat Sub Rec Scr Active Infowar (turns) 2672 | 12 260 2400 . . Seismic 2672 | 12 260 2400 . . Robot Analysis Total 5 | . . . . 5 Derelict Logs Recovered 1 | . . 1 . . Drone Launches . | . . . . . Drone Recoveries . | . . . . . Exploration | -11 -10 -10 -9 -9 ------------- Run | Yrd Mat Sub Rec Scr Turns Passed 5595 | 71 260 2693 204 2367 Spaces Moved 4923 | 64 258 1525 147 2929 Core 516 | 10 . . . 506 Treads 1272 | . . 794 30 448 Legs . | . . . . . Wheels 1160 | 54 258 731 117 . Hover . | . . . . . Flight 1975 | . . . . 1975 Fastest Speed 32 | 50 80 80 120 32 Average Speed 96 | 75 80 131 128 78 Slowest Speed 160 | 80 80 160 160 160 Overloaded Moves . | . . . . . Propulsion Burnouts . | . . . . . Robots Hopped . | . . . . . Potential Cave-ins . | . . . . . Cave-ins Triggered . | . . . . . Exploration Rate (%) 45 | 4 53 58 22 88 Regions Visited 4 Branch Regions 3 Pre-discovered Areas 7 | . . 2 . 5 Known Exits Taken . | . . . . . Unknown Exits Taken 4 | 1 1 1 1 . Scrap Searched 3 | . . . . 3 Spaces Dug 7 | . . 3 4 . Terrain Destroyed 66 | . . 60 6 . Melee . | . . . . . Projectile 15 | . . 9 6 . AOE 51 | . . 51 . . Terrain Rammed . | . . . . . Walls Destroyed . | . . . . . Machines Disabled . | . . . . . Actions | -11 -10 -10 -9 -9 --------- Run | Yrd Mat Sub Rec Scr Total 5602 | 77 283 2117 150 2975 Wait 487 | 1 2 484 . . Move 4919 | 63 257 1524 146 2929 Hop . | . . . . . Pick Up 21 | 3 5 6 . 7 Fast Attach 18 | 7 . 3 . 8 Attach 4 | . . 3 . 1 Detach 1 | . . . . 1 Swap 34 | . 1 13 1 19 Drop 18 | . 1 7 . 10 Fire 100 | 3 17 77 3 . Melee . | . . . . . Ram . | . . . . . Kick . | . . . . . Crush . | . . . . . Escape Stasis . | . . . . . Rewire . | . . . . . Trap . | . . . . . Miscellaneous . | . . . . . Route ------- -11/Scrapyard -10/Materials (discovered 2 exits: [*Min] / *Sub) -10/Subcaves (discovered 3 exits: [*Mat x2] / [*Rec]) -9/Recycling -9/Scraptown (discovered 1 exit: *Fac) History --------- Turn | Location | Event 19 | -11/Scrapyard | Discovered new exit (range 15) 72 | -11/Scrapyard | Entered Materials 258 | -10/Materials | Discovered new exit (range 16) 311 | -10/Materials | Build established: Mutant 328 | -10/Materials | Discovered new exit (range 4) 332 | -10/Materials | Entered Subcaves 405 | -10/Subcaves | Learned location of Zion (-7) 539 | -10/Subcaves | Discovered new exit (range 15) 1236 | -10/Subcaves | Core integrity fell below 50% 1340 | -10/Subcaves | Discovered new exit (range 15) 1641 | -10/Subcaves | Shifting Twisted Machinery released Mak. Light Armor Plating 1644 | -10/Subcaves | Shifting Twisted Machinery released Flamer 2391 | -10/Subcaves | Visited Clippyterm 2411 | -10/Subcaves | Learned location of Section 7 (-3) 2411 | -10/Subcaves | Learned Factory trap positions 2552 | -10/Subcaves | Visited 4L-MR0's lab 2568 | -10/Subcaves | Found Tower Shield 2967 | -10/Subcaves | Discovered new exit (range 7) 3020 | -10/Subcaves | Core integrity fell below 20% 3025 | -10/Subcaves | Entered Recycling 3047 | -9/Recycling | Scanned before Scraplab entrance 3211 | -9/Recycling | Entered Scraplab 3224 | -9/Recycling | Discovered new exit (range 4) 3229 | -9/Recycling | Entered Scraptown 3348 | -9/Scraptown | Visited UFD Registry 3348 | -9/Scraptown | Registered with UFD as "Beamcycle" 3407 | -9/Scraptown | Visited Analyses Database 3516 | -9/Scraptown | Visited Junk Repository 3636 | -9/Scraptown | Visited Derelict Rescue Squad 3661 | -9/Scraptown | Visited Research Penetration Think Tank 3701 | -9/Scraptown | Visited Cartography Club 3946 | -9/Scraptown | Released all parts (7) 3990 | -9/Scraptown | Learned location of Upper Caves (-5) 3990 | -9/Scraptown | Learned location of Proximity Caves (-5) 3990 | -9/Scraptown | Learned location of Archives (-4) 3990 | -9/Scraptown | Learned location of Testing (-2) 3990 | -9/Scraptown | Learned 4 Access zone layouts 3990 | -9/Scraptown | Learned 8 Access zone layouts 3990 | -9/Scraptown | Learned 4 Recycling zone layouts 3990 | -9/Scraptown | Learned 16 Lower Caves zone layouts 3990 | -9/Scraptown | Learned 4 Hub_04(d) zone layouts 3990 | -9/Scraptown | Learned Research emergency access door positions 3990 | -9/Scraptown | Learned location of 2 exits from Research 3990 | -9/Scraptown | Learned location of 2 exits from Lower Caves 3990 | -9/Scraptown | Learned location of 1 exit from Upper Caves 3990 | -9/Scraptown | Identified exit to Factory 4006 | -9/Scraptown | Found Deep Structural Scanner 4039 | -9/Scraptown | Visited Infowarlord's Domain 4043 | -9/Scraptown | Found Spectral Analyzer 4090 | -9/Scraptown | Visited Symbiants 4098 | -9/Scraptown | Visited Cyclists 4290 | -9/Scraptown | Visited Awakened 4300 | -9/Scraptown | Visited IN-MT5's Study 4313 | -9/Scraptown | Visited Red Mages 4326 | -9/Scraptown | Visited Fellowship of the Rings 5596 | -9/Scraptown | Self-destructed Last Messages --------------- I've heard of Zion, now that is a junk heap. Sure we love to make good use of scrap, but we don't want to live in it! Organize, organize, organize. 04669_ Acquired Deuterium Engine. 04670_ Acquired Mak. Power Source. 04672_ Dropped Core Shielding. 04675_ Acquired Mak. Light Armor Plating. 04677_ Acquired Lgt. Treads. 04693_ NG-DJN(p) scrutinizes some mainframe outputs. 04807_ Dropped Adv. Weight Redist. System. BS-D9Z(x): They said we had to keep our statue here until an office of suitable size opens up... A back room storage area is no place for the likeness of our great Wyrm! 04920_ Acquired 11 matter. BX-9GL(h): One day we're getting off this rock. 05325_ Dropped Bolt Gun. 05326_ Acquired Bolt Gun. 05445_ NG-DJN(p) scrutinizes some mainframe outputs. 05446_ Acquired Deuterium Engine. 05448_ Acquired Mak. Power Source. Map ----- +----------------------------------------------------+ | ????????????#"" "#?????????????????????? | | ?????????????#"" "########??????????????? | | # ################"" "## ![!#??????????????? | | """"""""""""""""""""" "## !=#??????????????? | | """"""""""""""""""""" ####??????????????? | | "## ! #??????????????? | | "## !!#??????????????? | | "## !#??????????????? | | ## ####??????????????? | | # [ #??????????????? | | """"" """"""""""" """""" ## #??????????????? | | ##### ########### ###### ########??????????????? | | #?????? ???# #?????????????????????? | | #?????""" "??# #?????????????????????? | | """ ""#????#"""" ""?# #?????????????????????? | | "" "#????#""" "!?# #?????????????????????? | | "" " X "#????#""" """# #?????????????????????? | | """"""""#??????"" """# ############??????????? | | #########???????""""""?# #??????????? | | ????????????????""""""?# ##??????????? | | ????????????????"""""??# #??????????? | | ???????????????????????# #??????????? | | ???????????????????????# #??????????? | | ???????????????????????# ############??????????? | | ######################## #####?????????????????? | | """##"""##"""##"""##"|"# @ """"#?????????????????? | | |""##" "##"""##"" ##" # "" "#?????????????????? | | c"#?????????????????? | | " "#?????????????????? | | """"#?????????????????? | | """##""|##"|"##!! ##""|##E######?????????????????? | | """##"""##"""##"""##"""####??????????????????????? | | ########################?????????????????????????? | | ?????????????????????????????????????????????????? | | ?????????????????????????????????????????????????? | | ?????????????????????????????????????????????????? | | ?????????????????????????????????????????????????? | | ?????????????????????????????????????????????????? | | ?????????????????????????????????????????????????? | | ?????????????????????????????????????????????????? | | ?????????????????????????????????????????????????? | | ?????????????????????????????????????????????????? | | ?????????????????????????????????????????????????? | | ?????????????????????????????????????????????????? | | ?????????????????????????????????????????????????? | | ?????????????????????????????????????????????????? | | ?????????????????????????????????????????????????? | | | | | | | +----------------------------------------------------+ Best States ------------- Heat Dissipation 44 Energy Generation 15 Energy Capacity 275 Matter Stores 300 Matter Capacity 300 Sight Range 16 Terrain Scan Density 10 Additional Mass Support 9 Armor Coverage 100 Core Shielding 20 Evasion (%) 63 Recoil Reduction 2 Item Schematics ----------------- None Robot Schematics ------------------ None Fabricated ------------ Nothing Repaired ---------- Nothing Studied --------- None Alien Tech Used ----------------- None Achievements -------------- None Challenges ------------ None Game ------ Seed DeuteriumScimitarPropulsion Manual? 0 Play Time 00:30:15 Cumulative 494.2 hours Start 2026.09.15 @ 00:23:27 End 2026.09.15 @ 00:54:07 Sessions 1 Manual Loads 0 Difficulty Rogue Special Mode None Game No. 368 Rogue 368 Adventurer 0 Explorer 0 Win Type - Total 10 Types 4/0/4/2/0/0/0/0/0/0 Lore% 64 Gallery% 72 Achievement% 59 Wizard Run 0 Options --------- Layout 2 ASCII 0 Keyboard 1 Movement Vi Keybinds 0 Fullscreen 2 Font 32/Smallcaps Map View 77x44 Zoom Use 0% Tactical HUD 1 Map Filters NONE Filters NONE Steam 1 RUN: 8d41dc22-a802-4ab5-b1c3-cdc2ed076c57